bitfinex/quotes_BTCUSD_20251012
["timestamp","ask_amount","ask_price","bid_price","bid_amount"]
[1760279203232,0.51908309,111680.0,111670.0,0.00316676]
[1760279204406,0.51908309,111680.0,111670.0,0.14316676]
[1760279204635,0.51908309,111680.0,111670.0,0.14216676]
[1760279204838,0.51908309,111680.0,111670.0,0.07458676]
[1760279205500,0.51908309,111680.0,111670.0,0.00116676]
[1760279206915,0.51908309,111680.0,111670.0,0.07458676]
[1760279207110,0.51908309,111680.0,111670.0,0.03374676]
[1760279208364,0.51908309,111680.0,111670.0,0.07458676]
[1760279210332,0.51908309,111680.0,111670.0,0.00116676]
[1760279210953,0.51908309,111680.0,111670.0,0.04200676]
[1760279211396,0.17908309,111680.0,111670.0,0.04200676]
[1760279212083,0.17908309,111680.0,111670.0,0.00116676]
[1760279215859,5.17908309,111680.0,111670.0,0.00116676]
[1760279216089,0.17908309,111680.0,111670.0,0.07458676]
[1760279216428,0.17908309,111680.0,111670.0,0.00116676]
[1760279217168,5.0,111690.0,111670.0,0.04200676]
[1760279217368,0.17908309,111680.0,111670.0,0.04084]
[1760279219620,0.17909913,111670.0,111660.0,0.2736356]
[1760279219859,0.17909913,111670.0,111660.0,0.3142756]
[1760279220911,0.17909913,111670.0,111660.0,0.3152756]
[1760279221517,0.17909913,111670.0,111660.0,0.3162756]
[1760279222379,0.17908309,111680.0,111660.0,0.3162756]
[1760279223154,0.17909913,111670.0,111660.0,0.3162756]
[1760279223576,0.17909913,111670.0,111660.0,0.3180259]
[1760279223896,0.17909913,111670.0,111660.0,0.3160259]
[1760279224770,0.17909913,111670.0,111660.0,0.3170259]
[1760279224966,0.17909913,111670.0,111660.0,0.3180259]
[1760279225210,0.17908309,111680.0,111660.0,0.3180259]
[1760279225413,0.17908309,111680.0,111670.0,0.21220913]
[1760279225774,0.17908309,111680.0,111670.0,0.07375]
[1760279227296,0.17908309,111680.0,111670.0,0.03311]
[1760279227510,0.17909913,111670.0,111660.0,0.2736356]
[1760279227655,5.67909913,111670.0,111660.0,0.00015046]
[1760279227851,5.21503371,111670.0,111660.0,0.00015046]
[1760279228301,5.21503254,111670.0,111660.0,0.00015046]
[1760279228847,5.19833059,111670.0,111660.0,0.00115046]
[1760279229983,5.19833059,111670.0,111660.0,0.00015046]
[1760279232031,0.19833059,111670.0,111660.0,0.04079046]
[1760279232232,0.23007685,111680.0,111660.0,0.2514428]
[1760279232418,0.17909913,111670.0,111660.0,0.3486431]
[1760279233096,0.17909913,111670.0,111660.0,0.31710593]
[1760279233312,0.17908309,111680.0,111660.0,0.31710593]
[1760279233533,0.19578735,111680.0,111660.0,0.31535563]
[1760279234684,5.00552309,111680.0,111670.0,0.27454913]
[1760279234890,4.84567146,111680.0,111670.0,0.31518913]
[1760279235133,0.34,111690.0,111680.0,0.17908309]
[1760279235334,0.17906706,111690.0,111680.0,0.17908309]
[1760279235465,0.17906706,111690.0,111680.0,0.07375]
[1760279235883,0.17906706,111690.0,111680.0,0.25283309]
[1760279238913,0.17906706,111690.0,111680.0,0.07375]
[1760279239283,0.17906706,111690.0,111680.0,0.07433333]
[1760279241080,0.17906706,111690.0,111680.0,0.00058333]
[1760279241277,0.17906706,111690.0,111680.0,0.04122333]
[1760279246665,0.17906706,111690.0,111680.0,0.07433333]
[1760279247276,0.17906706,111690.0,111680.0,0.00058333]
[1760279247909,0.17906706,111690.0,111680.0,0.04122333]
[1760279248112,0.17906706,111690.0,111680.0,0.07433333]
[1760279248315,0.17906706,111690.0,111680.0,0.17156139]
[1760279248518,0.17906706,111690.0,111680.0,0.13667333]
[1760279249252,0.17906706,111690.0,111680.0,0.07433333]
[1760279251166,0.17906706,111690.0,111680.0,0.13778333]
[1760279252151,0.17906706,111690.0,111680.0,0.31686642]
[1760279252804,0.17906706,111690.0,111680.0,0.13778333]
[1760279253148,0.17906706,111690.0,111680.0,0.31686642]
[1760279253537,0.17906706,111690.0,111680.0,0.13778333]
[1760279254835,4.82644,111690.0,111680.0,0.35186548]
[1760279255604,4.82644,111690.0,111680.0,0.31686642]
[1760279255806,5.00550706,111690.0,111680.0,0.31686642]
[1760279255988,0.17906706,111690.0,111680.0,0.31786642]
[1760279256967,0.17906706,111690.0,111680.0,0.31886642]
[1760279259013,0.17906706,111690.0,111680.0,0.07633333]
[1760279259217,0.17906706,111690.0,111680.0,0.31886642]
[1760279261445,4.82644,111690.0,111680.0,0.31886642]
[1760279261678,5.00550706,111690.0,111680.0,0.31886642]
[1760279261795,0.17906706,111690.0,111680.0,0.31886642]
[1760279269849,4.82644,111690.0,111680.0,0.31886642]
[1760279271185,5.00550706,111690.0,111680.0,0.31886642]
[1760279271371,0.17906706,111690.0,111680.0,0.31886642]
[1760279271796,0.3745154,111700.0,111680.0,0.31886642]
[1760279272017,4.82644,111690.0,111680.0,0.25541642]
[1760279272741,0.17619254,111700.0,111690.0,0.17906706]
[1760279272939,0.17619254,111700.0,111690.0,0.25174706]
[1760279273118,0.17619254,111700.0,111690.0,0.31291706]
[1760279280997,0.17619254,111700.0,111690.0,0.28602706]
[1760279282638,0.17619254,111700.0,111690.0,0.22485706]
[1760279283040,0.17619254,111700.0,111690.0,0.29122706]
[1760279287336,0.17619254,111700.0,111690.0,0.29222706]
[1760279288733,0.17619254,111700.0,111690.0,0.29322706]
[1760279288956,0.17619254,111700.0,111690.0,0.56192706]
[1760279292296,0.17619254,111700.0,111690.0,0.58881706]
[1760279292297,0.35524356,111700.0,111690.0,0.58881706]
[1760279293858,0.17619254,111700.0,111690.0,0.58881706]
[1760279294466,0.17619254,111700.0,111690.0,0.67328041]
[1760279294802,0.17619254,111700.0,111690.0,0.32011706]
[1760279297407,0.35524356,111700.0,111690.0,0.25374706]
[1760279297818,0.35524356,111700.0,111690.0,0.18106706]
[1760279297992,0.35524356,111700.0,111690.0,0.25572706]
[1760279298190,0.35524356,111700.0,111690.0,0.32209706]
[1760279298606,0.35524356,111700.0,111690.0,0.32109706]
[1760279298808,0.08344947,111700.0,111690.0,0.32109706]
[1760279299096,0.17905102,111700.0,111690.0,0.32009706]
[1760279300914,0.11612683,111710.0,111690.0,0.32009706]
[1760279301055,0.11612683,111710.0,111700.0,0.03344]
[1760279301259,0.11612683,111710.0,111700.0,0.07466]
[1760279301485,0.10267111,111710.0,111700.0,0.07466]
[1760279302127,0.10267111,111710.0,111700.0,0.07481046]
[1760279302810,0.10267111,111710.0,111700.0,0.32023148]
[1760279303606,0.20654884,111710.0,111700.0,0.32023148]
[1760279308336,0.00058313,111710.0,111700.0,0.32023148]
[1760279308536,0.17961813,111710.0,111700.0,0.32023148]
[1760279308843,0.00058313,111710.0,111700.0,0.32023148]
[1760279309712,0.00058313,111710.0,111700.0,0.32123148]
[1760279310857,0.00058313,111710.0,111700.0,0.32223148]
[1760279314868,4.82644,111730.0,111720.0,0.17901897]
[1760279315069,4.82644,111730.0,111720.0,0.31716897]
[1760279315279,5.00544295,111730.0,111720.0,0.0324]
[1760279315500,5.00544295,111730.0,111700.0,0.03559046]
[1760279315501,5.005475,111710.0,111700.0,0.00215046]
[1760279315704,0.179035,111710.0,111700.0,0.18120148]
[1760279315905,0.179035,111710.0,111700.0,0.22581148]
[1760279316113,0.179035,111710.0,111700.0,0.22481148]
[1760279316308,0.20596496,111710.0,111700.0,0.22481148]
[1760279316602,0.20596496,111710.0,111700.0,0.18020148]
[1760279316837,0.20596496,111710.0,111700.0,0.25721148]
[1760279317025,0.20596496,111710.0,111700.0,0.25621148]
[1760279318129,0.02692996,111710.0,111700.0,0.25621148]
[1760279318350,0.20596496,111710.0,111700.0,0.25621148]
[1760279318775,0.02692996,111710.0,111700.0,0.31735148]
[1760279319621,0.20596496,111710.0,111700.0,0.31735148]
[1760279320699,0.02692996,111710.0,111700.0,0.31831138]
[1760279322772,0.20596496,111710.0,111700.0,0.31831138]
[1760279323147,5.005475,111710.0,111700.0,0.31831138]
[1760279323348,0.179035,111710.0,111700.0,0.31831138]
[1760279323748,0.179035,111710.0,111700.0,0.25717138]
[1760279326099,0.179035,111710.0,111700.0,0.22098138]
[1760279327324,0.179035,111710.0,111700.0,0.31997138]
[1760279327535,0.179035,111710.0,111700.0,0.25354138]
[1760279327945,0.179035,111710.0,111700.0,0.07449036]
[1760279328162,0.179035,111710.0,111700.0,0.00111036]
[1760279328982,0.179035,111710.0,111700.0,0.04193036]
[1760279331350,5.505475,111710.0,111700.0,0.00111036]
[1760279331547,5.04141612,111710.0,111700.0,0.00111036]
[1760279331772,5.06834877,111710.0,111700.0,0.00111036]
[1760279334937,5.08238838,111710.0,111700.0,0.00111036]
[1760279337789,5.06568739,111710.0,111700.0,0.00111036]
[1760279338347,5.39084039,111710.0,111700.0,0.00111036]
[1760279338951,0.56000726,111710.0,111700.0,0.07449036]
[1760279339349,0.57923725,111710.0,111700.0,0.00111036]
[1760279341308,0.57923725,111710.0,111700.0,0.04142036]
[1760279341514,0.56000726,111710.0,111700.0,0.07241036]
[1760279341714,0.56000726,111710.0,111700.0,0.13871036]
[1760279341950,0.56000726,111710.0,111700.0,0.31776138]
[1760279342355,0.54596765,111710.0,111700.0,0.31776138]
[1760279343161,0.36693265,111710.0,111700.0,0.31776138]
[1760279343359,0.179035,111710.0,111700.0,0.13871036]
[1760279343539,0.17878564,111720.0,111700.0,0.31776138]
[1760279343734,0.179035,111710.0,111700.0,0.31776138]
[1760279347611,0.19282375,111720.0,111710.0,0.179035]
[1760279347836,0.54951825,111720.0,111710.0,0.04031]
[1760279348033,0.56874945,111720.0,111700.0,0.27745138]
[1760279349230,0.34,111710.0,111700.0,0.27745138]
[1760279349434,0.34,111710.0,111700.0,0.31776138]
[1760279350216,0.21205495,111720.0,111710.0,0.179035]
[1760279350345,0.01462116,111720.0,111710.0,0.316635]
[1760279350752,0.01462116,111720.0,111710.0,0.34356211]
[1760279351961,0.00058305,111720.0,111710.0,0.34356211]
[1760279352808,0.00058305,111720.0,111710.0,0.34456211]
[1760279353009,0.00058305,111720.0,111710.0,0.34556211]
[1760279356228,0.17960202,111720.0,111710.0,0.34556211]
[1760279356471,0.00058305,111720.0,111710.0,0.34556211]
[1760279359030,0.00058305,111720.0,111710.0,0.318635]
[1760279359868,0.17960202,111720.0,111710.0,0.318635]
[1760279361492,0.00058305,111720.0,111710.0,0.318635]
[1760279361892,0.20197524,111740.0,111710.0,0.318635]
[1760279362094,4.99060559,111730.0,111720.0,0.17901875]
[1760279362312,0.17901259,111730.0,111720.0,0.21932875]
[1760279362518,0.17901259,111730.0,111720.0,0.25031875]
[1760279362721,0.17959557,111730.0,111720.0,0.0713]
[1760279363113,0.18854571,111730.0,111720.0,0.0713]
[1760279363759,0.20109182,111730.0,111720.0,0.25031897]
[1760279363961,0.18854571,111730.0,111720.0,0.25031897]
[1760279364137,0.18854571,111730.0,111720.0,0.0713]
[1760279364343,0.25799571,111730.0,111720.0,0.0343]
[1760279365548,0.25799571,111730.0,111720.0,0.21331897]
[1760279369116,0.21734571,111730.0,111720.0,0.21331897]
[1760279369337,0.18854571,111730.0,111720.0,0.27961897]
[1760279369528,0.22023593,111730.0,111720.0,0.21331897]
[1760279370375,0.22023593,111730.0,111720.0,0.27811897]
[1760279372146,0.17958593,111730.0,111720.0,0.27811897]
[1760279372604,0.00058298,111730.0,111720.0,0.27811897]
[1760279373669,0.17958593,111730.0,111720.0,0.27811897]
[1760279374465,0.00058298,111730.0,111720.0,0.27811897]
[1760279377435,0.00058298,111730.0,111720.0,0.27911897]
[1760279378048,0.00058298,111730.0,111720.0,0.28011897]
[1760279378952,0.17958593,111730.0,111720.0,0.28011897]
[1760279379157,0.22078593,111730.0,111720.0,0.21531897]
[1760279385314,0.22078593,111730.0,111720.0,0.27862897]
[1760279386355,0.22078593,111730.0,111720.0,0.21531897]
[1760279386551,0.20724763,111730.0,111720.0,0.21531897]
[1760279386751,0.20724763,111730.0,111720.0,0.27862897]
[1760279388121,0.20724763,111730.0,111720.0,0.21531897]
[1760279396498,0.30724763,111730.0,111720.0,0.21531897]
[1760279398055,0.32388763,111730.0,111720.0,0.002]
[1760279398597,5.15219359,111730.0,111720.0,0.002]
[1760279398791,5.20383108,111730.0,111720.0,0.002]
[1760279399080,5.20383108,111730.0,111720.0,0.001]
[1760279399294,5.1954748,111730.0,111720.0,0.001]
[1760279399450,5.17139962,111730.0,111720.0,0.001]
[1760279400026,0.17901897,111720.0,111710.0,0.04399978]
[1760279400231,0.22228897,111720.0,111710.0,0.04399978]
[1760279400660,0.20564897,111720.0,111710.0,0.04399978]
[1760279400859,0.20564897,111720.0,111710.0,0.26621478]
[1760279401271,0.20564897,111720.0,111710.0,0.22303478]
[1760279401703,0.20564897,111720.0,111710.0,0.17999478]
[1760279401907,0.20564897,111720.0,111710.0,0.22317478]
[1760279402866,0.22228897,111720.0,111710.0,0.17999478]
[1760279403067,0.20564897,111720.0,111710.0,0.00095978]
[1760279403272,0.17901897,111720.0,111710.0,0.04413978]
[1760279403481,0.17901897,111720.0,111710.0,0.00095978]
[1760279404177,0.17901897,111720.0,111710.0,0.22317478]
[1760279404379,0.17901897,111720.0,111710.0,0.25464478]
[1760279404875,0.17901897,111720.0,111710.0,0.17999478]
[1760279405079,0.17901897,111720.0,111710.0,0.22317478]
[1760279405282,0.17901897,111720.0,111710.0,0.04413978]
[1760279405481,0.17901897,111720.0,111710.0,0.22317478]
[1760279405924,0.17901897,111720.0,111710.0,0.31677478]
[1760279406148,0.17901897,111720.0,111710.0,0.25464478]
[1760279406582,0.17901897,111720.0,111710.0,0.07560978]
[1760279407693,0.17901897,111720.0,111710.0,0.25464478]
[1760279408832,0.17901897,111720.0,111710.0,0.31677478]
[1760279409348,4.811593,111720.0,111710.0,0.31677478]
[1760279409548,0.29304005,111730.0,111720.0,0.17901897]
[1760279409753,0.29304005,111730.0,111720.0,0.31579897]
[1760279410205,0.1140371,111730.0,111720.0,0.31579897]
[1760279410745,0.29304005,111730.0,111720.0,0.31579897]
[1760279411464,0.29304005,111730.0,111720.0,0.31779897]
[1760279413893,0.29304005,111730.0,111720.0,0.21248897]
[1760279414103,0.27900295,111730.0,111720.0,0.18101897]
[1760279414520,0.27900295,111730.0,111720.0,0.25566897]
[1760279414898,0.27900295,111730.0,111720.0,0.25366897]
[1760279415381,0.27900295,111730.0,111720.0,0.31579897]
[1760279417060,0.61900295,111730.0,111720.0,0.31579897]
[1760279417268,0.73824015,111730.0,111720.0,0.31579897]
[1760279420451,0.73824015,111730.0,111720.0,0.07465]
[1760279420832,0.73824015,111730.0,111720.0,0.25366897]
[1760279421235,0.73824015,111730.0,111720.0,0.31579897]
[1760279422707,0.73824015,111730.0,111720.0,0.07465]
[1760279423052,0.73824015,111730.0,111720.0,0.25366897]
[1760279423646,0.73824015,111730.0,111720.0,0.07465]
[1760279424282,0.73824015,111730.0,111720.0,0.25366897]
[1760279424486,0.73824015,111730.0,111720.0,0.07465]
[1760279425094,0.73824015,111730.0,111720.0,0.03147]
[1760279425665,0.73824015,111730.0,111720.0,0.07465]
[1760279426210,0.73824015,111730.0,111720.0,0.25366897]
[1760279426415,0.73824015,111730.0,111720.0,0.07465]
[1760279426931,0.17901897,111720.0,111710.0,0.03242978]
[1760279427136,0.17901897,111720.0,111710.0,0.31677478]
[1760279428323,0.17901897,111720.0,111710.0,0.31877478]
[1760279431145,0.76516676,111730.0,111710.0,0.31877478]
[1760279431374,0.76516676,111730.0,111720.0,0.09367]
[1760279431607,0.56132086,111730.0,111720.0,0.13748]
[1760279433282,0.17901897,111720.0,111710.0,0.27452478]
[1760279433680,0.17901897,111720.0,111710.0,0.31833478]
[1760279434081,0.56132086,111730.0,111720.0,0.17901897]
[1760279434308,0.56132086,111730.0,111720.0,0.31649897]
[1760279434870,0.63826999,111730.0,111720.0,0.31649897]
[1760279436613,0.45926704,111730.0,111720.0,0.31649897]
[1760279436825,0.63826999,111730.0,111720.0,0.31649897]
[1760279437190,0.61900295,111730.0,111720.0,0.31649897]
[1760279437574,0.1,111730.0,111720.0,0.37198786]
[1760279437756,0.1,111730.0,111720.0,0.31649897]
[1760279437912,0.1,111730.0,111720.0,0.34342171]
[1760279438986,0.01927191,111740.0,111730.0,0.17900295]
[1760279439228,0.44357088,111750.0,111730.0,0.31648295]
[1760279439401,4.811593,111740.0,111730.0,0.31648295]
[1760279442040,0.17898693,111740.0,111730.0,0.07442]
[1760279442243,0.17900295,111730.0,111720.0,0.04304]
[1760279442396,5.49059595,111730.0,111720.0,0.04304]
[1760279442603,5.00986956,111730.0,111720.0,0.04304]
[1760279443170,5.03679807,111730.0,111720.0,0.04304]
[1760279444604,5.03679807,111730.0,111720.0,0.04399967]
[1760279444800,5.03679807,111730.0,111720.0,0.00095967]
[1760279445754,5.05083499,111730.0,111720.0,0.00095967]
[1760279447524,5.46486777,111730.0,111720.0,0.00095967]
[1760279447764,0.62613625,111730.0,111720.0,0.00095967]
[1760279447969,0.63450813,111730.0,111720.0,0.00095967]
[1760279448166,5.43772925,111730.0,111720.0,0.00095967]
[1760279448572,0.62613625,111730.0,111720.0,0.00095967]
[1760279448810,5.43772925,111730.0,111720.0,0.00095967]
[1760279448998,5.46177575,111730.0,111720.0,0.00095967]
[1760279449145,5.47913472,111730.0,111720.0,0.00095967]
[1760279449344,0.69164112,111730.0,111720.0,0.00095967]
[1760279449567,5.50323412,111730.0,111720.0,0.00095967]
[1760279449746,5.50627324,111730.0,111720.0,0.00095967]
[1760279451228,0.69468024,111730.0,111720.0,0.00095967]
[1760279451458,5.50627324,111730.0,111720.0,0.00095967]
[1760279451986,0.69468024,111730.0,111720.0,0.00095967]
[1760279452189,5.50627324,111730.0,111720.0,0.00095967]
[1760279453107,5.8607799,111710.0,111700.0,0.10015046]
[1760279453315,5.42086633,111710.0,111700.0,0.10015046]
[1760279453511,0.63641185,111710.0,111700.0,0.10015046]
[1760279453711,5.44800485,111710.0,111700.0,0.10015046]
[1760279453918,5.47494149,111710.0,111700.0,0.10015046]
[1760279455576,5.47594149,111710.0,111700.0,0.10015046]
[1760279456017,0.63720997,111710.0,111700.0,0.10015046]
[1760279456277,5.44880297,111710.0,111700.0,0.10015046]
[1760279456516,5.42473251,111710.0,111700.0,0.10015046]
[1760279457277,5.40799015,111710.0,111700.0,0.10015046]
[1760279457757,0.59639715,111710.0,111700.0,0.10015046]
[1760279457998,5.40799015,111710.0,111700.0,0.10015046]
[1760279458275,5.42203057,111710.0,111700.0,0.10015046]
[1760279458758,0.61043757,111710.0,111700.0,0.10131676]
[1760279459019,5.42203057,111710.0,111700.0,0.10131676]
[1760279459271,5.24299557,111710.0,111700.0,0.10131676]
[1760279459506,5.42203057,111710.0,111700.0,0.10131676]
[1760279461224,5.39187867,111710.0,111700.0,0.10131676]
[1760279461467,0.54697164,111710.0,111700.0,0.17460676]
[1760279461913,0.54697164,111710.0,111700.0,0.23686676]
[1760279462126,0.54597164,111710.0,111700.0,0.17460676]
[1760279462339,0.20597164,111710.0,111700.0,0.41591778]
[1760279462540,0.179035,111710.0,111700.0,0.23686676]
[1760279462939,0.519035,111710.0,111700.0,0.23686676]
[1760279465061,0.519035,111710.0,111700.0,0.17460676]
[1760279467652,0.519035,111710.0,111700.0,0.10131676]
[1760279468098,0.54596586,111710.0,111700.0,0.10131676]
[1760279468879,0.54596586,111710.0,111700.0,0.14185676]
[1760279469184,5.37680446,111710.0,111700.0,0.10131676]
[1760279470754,0.36693086,111710.0,111700.0,0.23686676]
[1760279471092,0.17903343,111720.0,111710.0,0.179035]
[1760279471093,0.19828001,111720.0,111710.0,0.179035]
[1760279471291,0.20594924,111720.0,111710.0,0.13555]
[1760279471504,0.5190214,111720.0,111710.0,0.13555]
[1760279471705,0.1790214,111720.0,111710.0,0.1361331]
[1760279471860,0.5190214,111720.0,111710.0,0.1361331]
[1760279472262,0.53829693,111720.0,111710.0,0.1361331]
[1760279472447,0.53829693,111720.0,111710.0,0.3151681]
[1760279472645,0.5190214,111720.0,111710.0,0.3151681]
[1760279473932,0.5190214,111720.0,111710.0,0.1361331]
[1760279474912,0.21584056,111730.0,111710.0,0.1361331]
[1760279475087,0.17901897,111720.0,111710.0,0.2529081]
[1760279475292,0.15138881,111730.0,111710.0,0.2529081]
[1760279475471,0.17901897,111720.0,111710.0,0.10079913]
[1760279475677,0.17901897,111720.0,111710.0,0.16305913]
[1760279475896,0.27901897,111720.0,111710.0,0.16305913]
[1760279476099,0.27901897,111720.0,111710.0,0.16405913]
[1760279476302,0.27901897,111720.0,111710.0,0.34309413]
[1760279476561,0.27901897,111720.0,111710.0,0.16405913]
[1760279477376,0.27901897,111720.0,111710.0,0.1371331]
[1760279477605,0.27901897,111720.0,111710.0,0.16405913]
[1760279478087,0.27901897,111720.0,111710.0,0.16505913]
[1760279478648,0.27901897,111720.0,111710.0,0.34409413]
[1760279479279,0.27901897,111720.0,111710.0,0.16505913]
[1760279479480,0.27901897,111720.0,111710.0,0.1381331]
[1760279481815,0.27901897,111720.0,111710.0,0.3171681]
[1760279482194,0.27901897,111720.0,111710.0,0.1381331]
[1760279484530,0.27901897,111720.0,111710.0,0.0758731]
[1760279484928,0.29305617,111720.0,111710.0,0.0758731]
[1760279485379,0.29305617,111720.0,111710.0,0.1381331]
[1760279485735,0.27901897,111720.0,111710.0,0.1381331]
[1760279487629,0.01891901,111720.0,111710.0,0.1381331]
[1760279487854,0.19793798,111720.0,111710.0,0.1381331]
[1760279491067,0.19793798,111720.0,111710.0,0.0025831]
[1760279491205,5.00953098,111720.0,111710.0,0.0025831]
[1760279491408,5.04285197,111720.0,111710.0,0.0025831]
[1760279491816,5.04285197,111720.0,111710.0,0.0015831]
[1760279492144,5.04285197,111720.0,111710.0,0.0005831]
[1760279492359,5.02881456,111720.0,111710.0,0.0005831]
[1760279493199,5.36881456,111720.0,111710.0,0.0005831]
[1760279495418,5.17087658,111720.0,111710.0,0.0005831]
[1760279495619,5.34989555,111720.0,111710.0,0.0005831]
[1760279497099,5.36393335,111720.0,111710.0,0.0005831]
[1760279497779,5.15520915,111720.0,111710.0,0.0005831]
[1760279497989,5.15520935,111720.0,111710.0,0.0005831]
[1760279499095,5.15525068,111720.0,111710.0,0.0748431]
[1760279499336,5.15525068,111720.0,111710.0,0.0005831]
[1760279499543,0.51901897,111720.0,111710.0,0.1372431]
[1760279499738,0.51901897,111720.0,111710.0,0.0748431]
[1760279499937,0.51901897,111720.0,111710.0,0.0338231]
[1760279500087,0.53834271,111720.0,111710.0,0.0338231]
[1760279500493,0.53834271,111720.0,111710.0,0.0005831]
[1760279500895,5.14121171,111720.0,111710.0,0.0005831]
[1760279501506,5.15800567,111720.0,111710.0,0.0005831]
[1760279501708,5.22071136,111720.0,111710.0,0.0005831]
[1760279501955,5.22071136,111720.0,111700.0,0.10015046]
[1760279502159,3.7183239,111710.0,111700.0,0.10015046]
[1760279502303,5.21232974,111710.0,111700.0,0.10015046]
[1760279502699,0.60946074,111710.0,111700.0,0.10073363]
[1760279502962,5.21232974,111710.0,111700.0,0.10073363]
[1760279503620,5.1881736,111710.0,111700.0,0.10073363]
[1760279504459,5.17137964,111710.0,111700.0,0.10073363]
[1760279504661,0.56851064,111710.0,111700.0,0.10073363]
[1760279504813,5.18542002,111710.0,111700.0,0.10073363]
[1760279507007,5.18642002,111710.0,111700.0,0.10073363]
[1760279507208,0.58355102,111710.0,111700.0,0.10073363]
[1760279507407,5.18642002,111710.0,111700.0,0.10073363]
[1760279507610,0.58255102,111710.0,111700.0,0.10073363]
[1760279507929,5.18642002,111710.0,111700.0,0.10073363]
[1760279508063,0.58355102,111710.0,111700.0,0.10073363]
[1760279508271,4.97723312,111710.0,111700.0,0.10073363]
[1760279508459,5.15626812,111710.0,111700.0,0.10073363]
[1760279508863,0.55339912,111710.0,111700.0,0.10073363]
[1760279509069,5.15626812,111710.0,111700.0,0.10073363]
[1760279511576,0.55339912,111710.0,111700.0,0.10073363]
[1760279511796,5.15626812,111710.0,111700.0,0.10073363]
[1760279512366,0.55339912,111710.0,111700.0,0.10073363]
[1760279512602,5.15626812,111710.0,111700.0,0.10073363]
[1760279513014,0.55339912,111710.0,111700.0,0.10073363]
[1760279513166,5.15626812,111710.0,111700.0,0.10073363]
[1760279513365,0.55339912,111710.0,111700.0,0.10073363]
[1760279513609,5.15626812,111710.0,111700.0,0.10073363]
[1760279514357,0.55339912,111710.0,111700.0,0.10073363]
[1760279514704,5.15626812,111710.0,111700.0,0.10073363]
[1760279516175,5.14222774,111710.0,111700.0,0.10073363]
[1760279518475,0.53935874,111710.0,111700.0,0.10073363]
[1760279518695,5.15897861,111710.0,111700.0,0.10073363]
[1760279518928,0.57014972,111710.0,111700.0,0.10073363]
[1760279519116,5.17301872,111710.0,111700.0,0.10073363]
[1760279519605,0.57014972,111710.0,111700.0,0.10073363]
[1760279519835,5.19717486,111710.0,111700.0,0.10073363]
[1760279522175,0.59430586,111710.0,111700.0,0.10073363]
[1760279522461,5.19717486,111710.0,111700.0,0.10073363]
[1760279522683,5.19717486,111710.0,111700.0,1e-08]
[1760279522684,5.23570565,111710.0,111700.0,1e-08]
[1760279522926,5.22954614,111710.0,111700.0,1e-08]
[1760279525702,4.88954614,111710.0,111700.0,1e-08]
[1760279526650,0.17909913,111670.0,111660.0,0.47622938]
[1760279526857,0.17909913,111670.0,111660.0,0.17168369]
[1760279527057,0.17909913,111670.0,111660.0,0.10527369]
[1760279527367,0.17909913,111670.0,111660.0,0.07765006]
[1760279527588,0.17909913,111670.0,111660.0,0.14406006]
[1760279528037,0.17909913,111670.0,111660.0,0.14506006]
[1760279528257,0.17909913,111670.0,111660.0,0.32417523]
[1760279528813,0.17909913,111670.0,111660.0,0.32517523]
[1760279529674,0.1790975,111680.0,111660.0,0.32417523]
[1760279529849,0.1790975,111680.0,111670.0,0.0977]
[1760279530265,0.1790975,111680.0,111670.0,0.14206]
[1760279532163,0.12613584,111690.0,111670.0,0.14206]
[1760279532383,0.1790975,111680.0,111670.0,0.14206]
[1760279534356,0.17909913,111670.0,111660.0,0.21240523]
[1760279534560,0.17909913,111670.0,111660.0,0.32317523]
[1760279534760,0.17909913,111670.0,111660.0,0.32550887]
[1760279535599,0.1790975,111680.0,111660.0,0.40781958]
[1760279535804,0.1790975,111680.0,111670.0,0.0977]
[1760279536006,0.1790975,111680.0,111670.0,0.03129]
[1760279536158,0.1790975,111680.0,111670.0,0.07565]
[1760279536827,0.1790975,111680.0,111670.0,0.14206]
[1760279538254,0.1790975,111680.0,111670.0,0.07565]
[1760279538789,0.5190975,111680.0,111670.0,0.07565]
[1760279538965,0.53842124,111680.0,111670.0,0.07565]
[1760279540003,0.17909913,111670.0,111660.0,0.27881523]
[1760279540142,0.17909913,111670.0,111660.0,0.21240523]
[1760279540347,0.53842124,111680.0,111670.0,0.17909913]
[1760279540544,0.53842124,111680.0,111670.0,0.07565]
[1760279540750,0.53842124,111680.0,111670.0,0.14206]
[1760279541062,0.53842124,111680.0,111670.0,0.14381007]
[1760279541548,0.53840683,111680.0,111670.0,0.3229092]
[1760279541704,0.53840683,111680.0,111670.0,0.14381007]
[1760279542110,0.53840683,111680.0,111670.0,0.3229092]
[1760279542990,0.53840683,111680.0,111670.0,0.07740007]
[1760279544309,5.14127583,111680.0,111670.0,0.00175007]
[1760279544652,5.18217311,111680.0,111670.0,0.00175007]
[1760279544859,5.24882966,111680.0,111670.0,0.00175007]
[1760279545685,5.22172096,111680.0,111670.0,0.00175007]
[1760279546287,4.97144649,111680.0,111670.0,0.00175007]
[1760279546495,4.87483999,111680.0,111670.0,0.00175007]
[1760279546809,0.27197099,111680.0,111670.0,0.00175007]
[1760279547024,4.91277685,111680.0,111670.0,0.00175007]
[1760279547221,4.93210059,111680.0,111670.0,0.00175007]
[1760279547527,4.94614532,111680.0,111670.0,0.00175007]
[1760279548525,5.28614532,111680.0,111670.0,0.00175007]
[1760279548935,0.68327632,111680.0,111670.0,0.00175007]
[1760279549132,5.29402629,111680.0,111670.0,0.00175007]
[1760279550302,5.26691759,111680.0,111670.0,0.00175007]
[1760279551051,0.66404859,111680.0,111670.0,0.00175007]
[1760279551255,5.26691759,111680.0,111670.0,0.00175007]
[1760279552099,0.66404859,111680.0,111670.0,0.00175007]
[1760279552299,5.26691759,111680.0,111670.0,0.00175007]
[1760279552526,0.66406156,111680.0,111670.0,0.00175007]
[1760279552745,5.26693056,111680.0,111670.0,0.00175007]
[1760279553482,5.23489382,111680.0,111670.0,0.00175007]
[1760279554352,5.25904466,111680.0,111670.0,0.00175007]
[1760279555104,0.65617566,111680.0,111670.0,0.00175007]
[1760279555309,5.25904126,111680.0,111670.0,0.00175007]
[1760279555697,0.65617226,111680.0,111670.0,0.00175007]
[1760279555904,5.25904126,111680.0,111670.0,0.00175007]
[1760279556461,5.31497585,111680.0,111670.0,0.00175007]
[1760279557289,5.26693056,111680.0,111670.0,0.00175007]
[1760279558467,0.17909913,111670.0,111660.0,5.006e-05]
[1760279558672,0.56003222,111670.0,111660.0,5.006e-05]
[1760279558896,5.19012395,111670.0,111660.0,5.006e-05]
[1760279559255,0.61420112,111670.0,111660.0,5.006e-05]
[1760279559478,5.21707012,111670.0,111660.0,5.006e-05]
[1760279559988,5.24722202,111670.0,111660.0,5.006e-05]
[1760279560225,0.67246172,111670.0,111660.0,5.006e-05]
[1760279560389,5.32337601,111670.0,111660.0,5.006e-05]
[1760279561008,5.29133927,111670.0,111660.0,5.006e-05]
[1760279561848,5.3426777,111670.0,111660.0,5.006e-05]
[1760279562051,0.54928311,111650.0,111640.0,1e-08]
[1760279562268,5.1220323,111630.0,111620.0,0.07162362]
[1760279562468,5.15815138,111630.0,111620.0,0.0717135]